[Event "Late-Titled-Tuesday-Blitz-September-19-2023"]
[Site "Chess.com"]
[Date "2023.09.19"]
[Round "10"]
[White "rychessmaster1"]
[Black "amanmuhammethommadov"]
[Result "1/2-1/2"]
[WhiteElo "2721"]
[BlackElo "2582"]
[TimeControl "180+1"]
[EndTime "15:56:19 PDT"]
[Termination "Game drawn by stalemate"]

1. d4 {[%clk 0:03:00.9]} 1... Nf6 {[%clk 0:02:59.5]} 2. c4 {[%clk 0:03:01.2]}
2... g6 {[%clk 0:02:59.4]} 3. Nc3 {[%clk 0:03:01.6]} 3... Bg7 {[%clk 0:02:59.9]}
4. e4 {[%clk 0:03:01.9]} 4... O-O {[%clk 0:03:00.4]} 5. Nf3 {[%clk 0:03:02.6]}
5... d6 {[%clk 0:03:00.9]} 6. Be2 {[%clk 0:03:03.3]} 6... e5 {[%clk 0:03:01.1]}
7. Be3 {[%clk 0:03:04]} 7... Ng4 {[%clk 0:03:00.6]} 8. Bg5 {[%clk 0:03:04.7]}
8... f6 {[%clk 0:03:01.2]} 9. Bh4 {[%clk 0:03:05.4]} 9... g5 {[%clk 0:03:01.7]}
10. Bg3 {[%clk 0:03:06]} 10... Nh6 {[%clk 0:03:02.4]} 11. dxe5 {[%clk
0:03:06.7]} 11... fxe5 {[%clk 0:03:01]} 12. h4 {[%clk 0:03:06.3]} 12... g4
{[%clk 0:02:58.6]} 13. Ng5 {[%clk 0:03:06.9]} 13... Nc6 {[%clk 0:02:44.6]} 14.
c5 {[%clk 0:03:02.1]} 14... Nd4 {[%clk 0:02:42.3]} 15. cxd6 {[%clk 0:03:00.2]}
15... cxd6 {[%clk 0:02:43.2]} 16. Bc4+ {[%clk 0:03:00.7]} 16... Kh8 {[%clk
0:02:42]} 17. O-O {[%clk 0:03:00.5]} 17... Bd7 {[%clk 0:02:35]} 18. Rc1 {[%clk
0:02:51.7]} 18... Rc8 {[%clk 0:02:32.6]} 19. Bd5 {[%clk 0:02:48.3]} 19... Qb6
{[%clk 0:02:29.4]} 20. Qd2 {[%clk 0:02:35.6]} 20... Rc5 {[%clk 0:02:09.6]} 21.
Ne2 {[%clk 0:02:18.2]} 21... Nxe2+ {[%clk 0:02:07.7]} 22. Qxe2 {[%clk
0:02:18.9]} 22... Bb5 {[%clk 0:02:07.9]} 23. Bc4 {[%clk 0:02:18.2]} 23... Bxc4
{[%clk 0:01:36.2]} 24. Rxc4 {[%clk 0:02:19.1]} 24... Rxc4 {[%clk 0:01:37.1]} 25.
Qxc4 {[%clk 0:02:18.6]} 25... Qxb2 {[%clk 0:01:38]} 26. Rd1 {[%clk 0:02:02.3]}
26... Qb6 {[%clk 0:01:27.1]} 27. Qe6 {[%clk 0:02:02.2]} 27... Rf6 {[%clk
0:01:22.4]} 28. Qe8+ {[%clk 0:02:00.4]} 28... Rf8 {[%clk 0:01:21.8]} 29. Qe7
{[%clk 0:02:00]} 29... Rf6 {[%clk 0:00:49.5]} 30. Rc1 {[%clk 0:01:48.9]} 30...
Ng8 {[%clk 0:00:40.4]} 31. Nf7+ {[%clk 0:01:47.7]} 31... Rxf7 {[%clk 0:00:37.6]}
32. Qxf7 {[%clk 0:01:48.6]} 32... Qb2 {[%clk 0:00:38.1]} 33. Rc8 {[%clk
0:01:46.8]} 33... Qc1+ {[%clk 0:00:37.3]} 34. Kh2 {[%clk 0:01:46.9]} 34... Qxc8
{[%clk 0:00:38.2]} 35. h5 {[%clk 0:01:37.5]} 35... h6 {[%clk 0:00:35.8]} 36. Bh4
{[%clk 0:01:37]} 36... Qc6 {[%clk 0:00:34.1]} 37. Qg6 {[%clk 0:01:27.7]} 37...
Qd7 {[%clk 0:00:29.8]} 38. Kg3 {[%clk 0:01:26.9]} 38... b5 {[%clk 0:00:27.4]}
39. f3 {[%clk 0:01:21.1]} 39... gxf3 {[%clk 0:00:26.1]} 40. gxf3 {[%clk
0:01:22]} 40... a5 {[%clk 0:00:26.3]} 41. Kg2 {[%clk 0:01:20.4]} 41... b4 {[%clk
0:00:26.2]} 42. Be1 {[%clk 0:01:19.8]} 42... Nf6 {[%clk 0:00:24.1]} 43. Bd2
{[%clk 0:01:18.1]} 43... Qe8 {[%clk 0:00:23.3]} 44. Qf5 {[%clk 0:01:16.8]} 44...
Qxh5 {[%clk 0:00:22.2]} 45. Qc8+ {[%clk 0:01:17.6]} 45... Qe8 {[%clk 0:00:20.6]}
46. Qa6 {[%clk 0:01:17.5]} 46... Qg6+ {[%clk 0:00:20.8]} 47. Kf2 {[%clk
0:01:17.4]} 47... d5 {[%clk 0:00:18.8]} 48. Qa8+ {[%clk 0:01:03.4]} 48... Kh7
{[%clk 0:00:19.1]} 49. exd5 {[%clk 0:01:03.7]} 49... Qd3 {[%clk 0:00:19.7]} 50.
Ke1 {[%clk 0:01:04]} 50... Qxf3 {[%clk 0:00:19.2]} 51. Qc8 {[%clk 0:01:03.5]}
51... Nxd5 {[%clk 0:00:18.8]} 52. Qc4 {[%clk 0:01:03.3]} 52... Nf4 {[%clk
0:00:17.1]} 53. Bxf4 {[%clk 0:01:00.8]} 53... exf4 {[%clk 0:00:17.8]} 54. Qf7
{[%clk 0:00:58.2]} 54... Qe3+ {[%clk 0:00:16.4]} 55. Kf1 {[%clk 0:00:58.2]}
55... Qe5 {[%clk 0:00:16.9]} 56. a3 {[%clk 0:00:56.7]} 56... bxa3 {[%clk
0:00:15.8]} 57. Kg2 {[%clk 0:00:53.6]} 57... a2 {[%clk 0:00:16]} 58. Qc4 {[%clk
0:00:44.9]} 58... a1=Q {[%clk 0:00:13.4]} 59. Qd3+ {[%clk 0:00:45.5]} 59... Kg8
{[%clk 0:00:13.8]} 60. Qd8+ {[%clk 0:00:45.8]} 60... Kf7 {[%clk 0:00:14.4]} 61.
Qd7+ {[%clk 0:00:41.1]} 61... Qe7 {[%clk 0:00:14.6]} 62. Qd5+ {[%clk 0:00:40.5]}
62... Qe6 {[%clk 0:00:14.9]} 63. Qb7+ {[%clk 0:00:41]} 63... Kg8 {[%clk
0:00:15.1]} 64. Qf3 {[%clk 0:00:40.2]} 64... Qb2+ {[%clk 0:00:14.3]} 65. Qf2
{[%clk 0:00:40.7]} 65... Qxf2+ {[%clk 0:00:14.2]} 66. Kh1 {[%clk 0:00:40.8]}
66... Qee3 {[%clk 0:00:15.1]} 1/2-1/2

[Event "Late-Titled-Tuesday-Blitz-September-19-2023"]
[Site "Chess.com"]
[Date "2023.09.19"]
[Round "10"]
[White "Mikhail_Golubev"]
[Black "farzadbfd"]
[Result "1/2-1/2"]
[WhiteElo "2585"]
[BlackElo "2693"]
[TimeControl "180+1"]
[EndTime "15:56:19 PDT"]
[Termination "Game drawn - insufficient material"]

1. e4 {[%clk 0:03:00.9]} 1... e5 {[%clk 0:02:59.3]} 2. Nf3 {[%clk 0:03:00.8]}
2... Nc6 {[%clk 0:02:59.8]} 3. Bc4 {[%clk 0:03:01.2]} 3... Bc5 {[%clk
0:02:59.4]} 4. c3 {[%clk 0:03:00.6]} 4... Nf6 {[%clk 0:03:00.1]} 5. d4 {[%clk
0:03:01.1]} 5... exd4 {[%clk 0:03:01]} 6. cxd4 {[%clk 0:03:01.4]} 6... Bb4+
{[%clk 0:03:00.9]} 7. Nbd2 {[%clk 0:03:02]} 7... d5 {[%clk 0:02:52.9]} 8. exd5
{[%clk 0:03:01.3]} 8... Nxd5 {[%clk 0:02:53.1]} 9. O-O {[%clk 0:03:01.3]} 9...
O-O {[%clk 0:02:52.9]} 10. a3 {[%clk 0:03:01.9]} 10... Be7 {[%clk 0:02:50.9]}
11. Re1 {[%clk 0:03:01.8]} 11... Bf6 {[%clk 0:02:33.8]} 12. Ne4 {[%clk
0:02:52.3]} 12... Nb6 {[%clk 0:02:34.3]} 13. Ba2 {[%clk 0:02:22.6]} 13... Bxd4
{[%clk 0:02:22.8]} 14. Bg5 {[%clk 0:02:14.8]} 14... Qd7 {[%clk 0:02:11.2]} 15.
Nxd4 {[%clk 0:02:09.5]} 15... Qxd4 {[%clk 0:02:10.9]} 16. Qf3 {[%clk 0:01:55.8]}
16... Ne5 {[%clk 0:01:57.2]} 17. Qg3 {[%clk 0:01:51.2]} 17... Ng6 {[%clk
0:01:50.9]} 18. Qxc7 {[%clk 0:01:41.9]} 18... Be6 {[%clk 0:01:42.6]} 19. Bxe6
{[%clk 0:01:17.7]} 19... fxe6 {[%clk 0:01:42.8]} 20. Qxb7 {[%clk 0:01:17.8]}
20... Qxb2 {[%clk 0:01:38.9]} 21. a4 {[%clk 0:01:12.2]} 21... Nxa4 {[%clk
0:01:31.3]} 22. Qc6 {[%clk 0:01:03.1]} 22... Nb6 {[%clk 0:01:17.4]} 23. Qxe6+
{[%clk 0:00:51.7]} 23... Kh8 {[%clk 0:01:17.9]} 24. Rab1 {[%clk 0:00:49.5]}
24... Qc2 {[%clk 0:01:06.6]} 25. Rbc1 {[%clk 0:00:41.5]} 25... Qb2 {[%clk
0:01:02.7]} 26. Rb1 {[%clk 0:00:37.7]} 26... Qc2 {[%clk 0:00:45.7]} 27. Rbc1
{[%clk 0:00:36.9]} 27... Qa4 {[%clk 0:00:45.6]} 28. Nd6 {[%clk 0:00:30.2]} 28...
Qd7 {[%clk 0:00:38.7]} 29. Qxd7 {[%clk 0:00:30]} 29... Nxd7 {[%clk 0:00:39.6]}
30. Rc7 {[%clk 0:00:29.3]} 30... Nde5 {[%clk 0:00:35.9]} 31. h4 {[%clk
0:00:17.1]} 31... h6 {[%clk 0:00:34.6]} 32. Be3 {[%clk 0:00:15]} 32... Rfd8
{[%clk 0:00:24.5]} 33. Nf7+ {[%clk 0:00:14.6]} 33... Nxf7 {[%clk 0:00:24.7]} 34.
Rxf7 {[%clk 0:00:15.2]} 34... Nxh4 {[%clk 0:00:24.7]} 35. Rxa7 {[%clk
0:00:12.9]} 35... Rxa7 {[%clk 0:00:24.3]} 36. Bxa7 {[%clk 0:00:12.2]} 36... Rd7
{[%clk 0:00:22.5]} 37. Bc5 {[%clk 0:00:11]} 37... Kh7 {[%clk 0:00:22.1]} 38. Re7
{[%clk 0:00:10.1]} 38... Rd5 {[%clk 0:00:22.5]} 39. Be3 {[%clk 0:00:08.2]} 39...
Nf5 {[%clk 0:00:22.6]} 40. Re4 {[%clk 0:00:08]} 40... g5 {[%clk 0:00:22.3]} 41.
Kh2 {[%clk 0:00:07.2]} 41... Kg6 {[%clk 0:00:22.5]} 42. g4 {[%clk 0:00:05.9]}
42... Nh4 {[%clk 0:00:20.2]} 43. Kg3 {[%clk 0:00:05.2]} 43... Rd1 {[%clk
0:00:20]} 44. Re6+ {[%clk 0:00:04]} 44... Kg7 {[%clk 0:00:18.5]} 45. Ra6 {[%clk
0:00:02.3]} 45... Ng6 {[%clk 0:00:18.5]} 46. Ra7+ {[%clk 0:00:01.5]} 46... Kg8
{[%clk 0:00:18.7]} 47. Ra6 {[%clk 0:00:01.7]} 47... Kf7 {[%clk 0:00:18.6]} 48.
Ra7+ {[%clk 0:00:02]} 48... Ke6 {[%clk 0:00:18.3]} 49. Ra6+ {[%clk 0:00:02.9]}
49... Rd6 {[%clk 0:00:18.6]} 50. Rxd6+ {[%clk 0:00:02.3]} 50... Kxd6 {[%clk
0:00:19.5]} 51. f4 {[%clk 0:00:02.5]} 51... gxf4+ {[%clk 0:00:15.4]} 52. Bxf4+
{[%clk 0:00:03.4]} 52... Nxf4 {[%clk 0:00:15.9]} 53. Kxf4 {[%clk 0:00:03.3]}
53... Ke6 {[%clk 0:00:16.6]} 54. g5 {[%clk 0:00:04.2]} 54... hxg5+ {[%clk
0:00:17.2]} 55. Kxg5 {[%clk 0:00:04]} 1/2-1/2

[Event "Late-Titled-Tuesday-Blitz-September-19-2023"]
[Site "Chess.com"]
[Date "2023.09.19"]
[Round "10"]
[White "Mariia89"]
[Black "valemava"]
[Result "0-1"]
[WhiteElo "2053"]
[BlackElo "2290"]
[TimeControl "180+1"]
[EndTime "15:56:25 PDT"]
[Termination "valemava won on time"]

1. d4 {[%clk 0:02:59.3]} 1... c6 {[%clk 0:02:57]} 2. c4 {[%clk 0:02:58]} 2... b5
{[%clk 0:02:57.1]} 3. e3 {[%clk 0:02:57.7]} 3... bxc4 {[%clk 0:02:56.7]} 4. Bxc4
{[%clk 0:02:57.7]} 4... Ba6 {[%clk 0:02:57.2]} 5. Qb3 {[%clk 0:02:46.9]} 5... d5
{[%clk 0:02:54.5]} 6. Bxa6 {[%clk 0:02:32.7]} 6... Qa5+ {[%clk 0:02:53.6]} 7.
Bd2 {[%clk 0:02:31.8]} 7... Qxa6 {[%clk 0:02:53.6]} 8. Nf3 {[%clk 0:02:28.3]}
8... Nd7 {[%clk 0:02:52.9]} 9. Bc3 {[%clk 0:02:15.6]} 9... e6 {[%clk 0:02:51]}
10. Qd1 {[%clk 0:02:08.4]} 10... Ngf6 {[%clk 0:02:50.2]} 11. Qe2 {[%clk
0:02:08.9]} 11... Qxe2+ {[%clk 0:02:48]} 12. Kxe2 {[%clk 0:02:09.6]} 12... Rb8
{[%clk 0:02:46.2]} 13. Nbd2 {[%clk 0:02:09.9]} 13... Bb4 {[%clk 0:02:42.8]} 14.
Bxb4 {[%clk 0:02:06.7]} 14... Rxb4 {[%clk 0:02:42]} 15. b3 {[%clk 0:02:07.6]}
15... c5 {[%clk 0:02:40.8]} 16. a3 {[%clk 0:02:05.3]} 16... Rb8 {[%clk
0:02:38.3]} 17. dxc5 {[%clk 0:02:05.6]} 17... Nxc5 {[%clk 0:02:38.8]} 18. b4
{[%clk 0:02:06.5]} 18... Nce4 {[%clk 0:02:36.2]} 19. Nxe4 {[%clk 0:01:52]} 19...
Nxe4 {[%clk 0:02:37.1]} 20. Rac1 {[%clk 0:01:47.5]} 20... O-O {[%clk 0:02:23.2]}
21. Nd4 {[%clk 0:01:43.2]} 21... Rb7 {[%clk 0:02:17.4]} 22. f3 {[%clk
0:01:41.5]} 22... Nd6 {[%clk 0:02:16.8]} 23. Rc3 {[%clk 0:01:31.7]} 23... g6
{[%clk 0:02:14.2]} 24. Rhc1 {[%clk 0:01:28.8]} 24... Nc4 {[%clk 0:02:08.3]} 25.
f4 {[%clk 0:01:07.8]} 25... Nd6 {[%clk 0:01:57.7]} 26. Nb3 {[%clk 0:00:58.1]}
26... h5 {[%clk 0:01:50.4]} 27. Na5 {[%clk 0:00:54.8]} 27... Rb6 {[%clk
0:01:43.8]} 28. Rc7 {[%clk 0:00:52]} 28... Nb5 {[%clk 0:01:43.1]} 29. Rc8 {[%clk
0:00:21.7]} 29... Nxa3 {[%clk 0:01:40.4]} 30. Rxf8+ {[%clk 0:00:21.2]} 30...
Kxf8 {[%clk 0:01:41.3]} 31. Rc8+ {[%clk 0:00:20.7]} 31... Kg7 {[%clk 0:01:40.1]}
32. Nc6 {[%clk 0:00:16.8]} 32... Nb5 {[%clk 0:01:31.4]} 33. Ne5 {[%clk
0:00:10.2]} 33... Nd6 {[%clk 0:01:29]} 34. Rc7 {[%clk 0:00:08.1]} 34... Rxb4
{[%clk 0:01:17.9]} 35. Rxa7 {[%clk 0:00:08.3]} 35... d4 {[%clk 0:01:15]} 36.
exd4 {[%clk 0:00:02.6]} 36... Rxd4 {[%clk 0:01:13.8]} 37. g3 {[%clk 0:00:02.6]}
37... Rb4 {[%clk 0:01:06.3]} 38. Rd7 {[%clk 0:00:02.2]} 38... Rb2+ {[%clk
0:01:03.5]} 39. Kf3 {[%clk 0:00:02.7]} 39... Rb3+ {[%clk 0:01:03.2]} 40. Ke2
{[%clk 0:00:01.9]} 40... Rb6 {[%clk 0:01:03]} 41. Kf3 {[%clk 0:00:01.7]} 41...
Kf6 {[%clk 0:01:00.3]} 42. h4 {[%clk 0:00:01.6]} 42... Kg7 {[%clk 0:00:58.8]}
43. Kf2 {[%clk 0:00:01.4]} 43... Kf8 {[%clk 0:00:52.7]} 44. Kf3 {[%clk
0:00:01.2]} 44... Ke8 {[%clk 0:00:51]} 45. Ra7 {[%clk 0:00:01.9]} 45... Rb7
{[%clk 0:00:48.9]} 46. Ra8+ {[%clk 0:00:01.9]} 46... Ke7 {[%clk 0:00:47]} 47.
Rh8 {[%clk 0:00:02.8]} 47... Rb3+ {[%clk 0:00:45.4]} 48. Kg2 {[%clk 0:00:01.9]}
48... Ne4 {[%clk 0:00:45.2]} 49. Rh7 {[%clk 0:00:02.1]} 49... Rxg3+ {[%clk
0:00:44.2]} 50. Kh2 {[%clk 0:00:03]} 50... Rb3 {[%clk 0:00:38.7]} 51. Nxg6+
{[%clk 0:00:03.4]} 51... Kf6 {[%clk 0:00:38.3]} 52. Ne5 {[%clk 0:00:03.5]} 52...
Nd6 {[%clk 0:00:36.3]} 53. Nd7+ {[%clk 0:00:03.3]} 53... Kf5 {[%clk 0:00:36]}
54. Nc5 {[%clk 0:00:03.5]} 54... Rb2+ {[%clk 0:00:35.3]} 55. Kg3 {[%clk
0:00:03.5]} 55... Rc2 {[%clk 0:00:35]} 56. Nd7 {[%clk 0:00:01.5]} 56... Rc3+
{[%clk 0:00:34.6]} 0-1

[Event "Late-Titled-Tuesday-Blitz-September-19-2023"]
[Site "Chess.com"]
[Date "2023.09.19"]
[Round "10"]
[White "Njal28"]
[Black "GMBenjaminBok"]
[Result "1-0"]
[WhiteElo "3098"]
[BlackElo "2953"]
[TimeControl "180+1"]
[EndTime "15:56:33 PDT"]
[Termination "Njal28 won by resignation"]

1. e4 {[%clk 0:02:59.6]} 1... c5 {[%clk 0:02:58.8]} 2. Nf3 {[%clk 0:02:53.2]}
2... d6 {[%clk 0:02:58.9]} 3. d4 {[%clk 0:02:49.4]} 3... cxd4 {[%clk 0:02:59.8]}
4. Nxd4 {[%clk 0:02:46.8]} 4... Nf6 {[%clk 0:03:00.1]} 5. Nc3 {[%clk 0:02:47.4]}
5... a6 {[%clk 0:03:00.6]} 6. Rg1 {[%clk 0:02:43.9]} 6... b5 {[%clk 0:02:59.4]}
7. a4 {[%clk 0:02:31.6]} 7... b4 {[%clk 0:02:59.3]} 8. Nd5 {[%clk 0:02:30.8]}
8... Nxd5 {[%clk 0:02:59.8]} 9. exd5 {[%clk 0:02:30.1]} 9... Bb7 {[%clk
0:02:59.6]} 10. Nf5 {[%clk 0:02:23.1]} 10... Nd7 {[%clk 0:02:48.7]} 11. Qd4
{[%clk 0:02:20.7]} 11... Nf6 {[%clk 0:02:46]} 12. Bg5 {[%clk 0:02:14.3]} 12...
g6 {[%clk 0:02:18.4]} 13. Qxb4 {[%clk 0:01:41.1]} 13... Rb8 {[%clk 0:01:26]} 14.
Bxf6 {[%clk 0:01:40.4]} 14... exf6 {[%clk 0:01:26.9]} 15. Qe4+ {[%clk
0:01:40.5]} 15... Kd7 {[%clk 0:01:24]} 16. Ne3 {[%clk 0:01:33.9]} 16... Bh6
{[%clk 0:01:11.8]} 17. O-O-O {[%clk 0:01:25.5]} 17... Qb6 {[%clk 0:00:58.7]} 18.
a5 {[%clk 0:01:15.3]} 18... Qxa5 {[%clk 0:00:34.5]} 19. Kb1 {[%clk 0:01:15.8]}
19... Ba8 {[%clk 0:00:26.7]} 20. Qd4 {[%clk 0:01:10.9]} 20... Bg7 {[%clk
0:00:18.3]} 21. Nc4 {[%clk 0:00:58.5]} 21... Qc5 {[%clk 0:00:17.1]} 22. Qxc5
{[%clk 0:00:46.3]} 22... dxc5 {[%clk 0:00:18]} 23. c3 {[%clk 0:00:47]} 23... f5
{[%clk 0:00:18.2]} 24. Kc2 {[%clk 0:00:47.8]} 24... Rhe8 {[%clk 0:00:17.7]} 25.
Ne3 {[%clk 0:00:46.7]} 25... Bh6 {[%clk 0:00:16.2]} 26. Bxa6 {[%clk 0:00:43.5]}
26... Bxe3 {[%clk 0:00:15.6]} 27. fxe3 {[%clk 0:00:44.4]} 27... Rxe3 {[%clk
0:00:15.7]} 28. Rd2 {[%clk 0:00:34.7]} 28... Kd6 {[%clk 0:00:14.9]} 29. Be2
{[%clk 0:00:29.5]} 29... Rbe8 {[%clk 0:00:12.7]} 30. Bf3 {[%clk 0:00:25.1]}
30... g5 {[%clk 0:00:11.6]} 31. Ra1 {[%clk 0:00:25.2]} 31... g4 {[%clk
0:00:08.9]} 32. Bd1 {[%clk 0:00:25.9]} 32... Ke5 {[%clk 0:00:07.2]} 33. c4
{[%clk 0:00:23.7]} 33... h5 {[%clk 0:00:05.8]} 34. Ra5 {[%clk 0:00:22]} 34...
Kd6 {[%clk 0:00:05.6]} 35. Ra6+ {[%clk 0:00:17.5]} 35... Ke5 {[%clk 0:00:06]}
36. Ra7 {[%clk 0:00:18.2]} 36... Kf6 {[%clk 0:00:05.1]} 37. Rc7 {[%clk
0:00:16.1]} 37... f4 {[%clk 0:00:03.1]} 38. Rxc5 {[%clk 0:00:16.8]} 38... Re1
{[%clk 0:00:01.9]} 39. d6 {[%clk 0:00:12.4]} 39... Be4+ {[%clk 0:00:01.5]} 40.
Kc3 {[%clk 0:00:12.6]} 40... Rd8 {[%clk 0:00:02.1]} 41. Rxh5 {[%clk 0:00:10.5]}
41... Bg6 {[%clk 0:00:02.2]} 42. Rhd5 {[%clk 0:00:10]} 42... Re3+ {[%clk
0:00:02.4]} 43. Kb4 {[%clk 0:00:08.1]} 43... Be4 {[%clk 0:00:02.9]} 44. R5d4
{[%clk 0:00:07.5]} 44... Ke5 {[%clk 0:00:03]} 45. Bxg4 {[%clk 0:00:03.7]} 45...
Rb8+ {[%clk 0:00:03]} 46. Kc5 {[%clk 0:00:04.3]} 46... f5 {[%clk 0:00:03.3]} 47.
Rd5+ {[%clk 0:00:04.6]} 47... Ke6 {[%clk 0:00:02.2]} 48. d7 {[%clk 0:00:04.2]}
48... Bxd5 {[%clk 0:00:01.5]} 49. Rxd5 {[%clk 0:00:04.5]} 49... Rd8 {[%clk
0:00:01.9]} 50. Bxf5+ {[%clk 0:00:04.7]} 50... Ke7 {[%clk 0:00:02.5]} 51. b4
{[%clk 0:00:04.2]} 51... Re2 {[%clk 0:00:02.9]} 52. Bh3 {[%clk 0:00:04.4]} 52...
f3 {[%clk 0:00:02.9]} 53. gxf3 {[%clk 0:00:05.3]} 53... Rxh2 {[%clk 0:00:03.4]}
54. Bg4 {[%clk 0:00:06]} 54... Rb2 {[%clk 0:00:03]} 55. b5 {[%clk 0:00:06.7]}
55... Rc2 {[%clk 0:00:03.3]} 56. b6 {[%clk 0:00:07]} 56... Rb2 {[%clk
0:00:03.7]} 57. Kc6 {[%clk 0:00:06.7]} 57... Rb4 {[%clk 0:00:04]} 58. c5 {[%clk
0:00:07.1]} 58... Rc4 {[%clk 0:00:04.1]} 59. Kc7 {[%clk 0:00:05.7]} 59... Rf8
{[%clk 0:00:02.4]} 60. c6 {[%clk 0:00:04.6]} 60... Rf6 {[%clk 0:00:02.1]} 61.
d8=Q+ {[%clk 0:00:05.1]} 1-0

[Event "Late-Titled-Tuesday-Blitz-September-19-2023"]
[Site "Chess.com"]
[Date "2023.09.19"]
[Round "10"]
[White "FrancescoSorcinelli"]
[Black "IMSlavin"]
[Result "1-0"]
[WhiteElo "2175"]
[BlackElo "2280"]
[TimeControl "180+1"]
[EndTime "15:56:34 PDT"]
[Termination "FrancescoSorcinelli won on time"]

1. Nf3 {[%clk 0:03:00.9]} 1... Nc6 {[%clk 0:03:00]} 2. d4 {[%clk 0:03:00.7]}
2... d6 {[%clk 0:03:00]} 3. g3 {[%clk 0:02:57.6]} 3... Nf6 {[%clk 0:02:58.6]} 4.
Bg2 {[%clk 0:02:57.8]} 4... Bg4 {[%clk 0:02:58.8]} 5. O-O {[%clk 0:02:55.9]}
5... Qc8 {[%clk 0:02:57.3]} 6. c4 {[%clk 0:02:53.7]} 6... e5 {[%clk 0:02:56.5]}
7. d5 {[%clk 0:02:51.4]} 7... Ne7 {[%clk 0:02:56.1]} 8. Nc3 {[%clk 0:02:49]}
8... Ng6 {[%clk 0:02:55.5]} 9. e4 {[%clk 0:02:46.5]} 9... a6 {[%clk 0:02:55]}
10. Be3 {[%clk 0:02:45.8]} 10... Be7 {[%clk 0:02:54.3]} 11. Rc1 {[%clk
0:02:44.5]} 11... O-O {[%clk 0:02:52.3]} 12. Qd3 {[%clk 0:02:35.2]} 12... Bh3
{[%clk 0:02:51.5]} 13. b4 {[%clk 0:02:33.1]} 13... Bxg2 {[%clk 0:02:50.8]} 14.
Kxg2 {[%clk 0:02:33.5]} 14... h6 {[%clk 0:02:43.7]} 15. h3 {[%clk 0:02:33.6]}
15... Nh7 {[%clk 0:02:41.6]} 16. c5 {[%clk 0:02:27.3]} 16... Qd8 {[%clk
0:02:41.4]} 17. a4 {[%clk 0:01:55.3]} 17... Ng5 {[%clk 0:02:40]} 18. Bxg5 {[%clk
0:01:50.3]} 18... Bxg5 {[%clk 0:02:39]} 19. Rc2 {[%clk 0:01:39.8]} 19... Be7
{[%clk 0:02:36.1]} 20. cxd6 {[%clk 0:01:26.2]} 20... cxd6 {[%clk 0:02:33.9]} 21.
b5 {[%clk 0:01:21.2]} 21... Qa5 {[%clk 0:02:10.1]} 22. bxa6 {[%clk 0:01:19]}
22... bxa6 {[%clk 0:02:06.4]} 23. Rb1 {[%clk 0:01:13.8]} 23... Rfc8 {[%clk
0:01:52.5]} 24. Rb7 {[%clk 0:01:10.3]} 24... Bf8 {[%clk 0:01:51.6]} 25. Nd2
{[%clk 0:01:04.3]} 25... h5 {[%clk 0:01:43.5]} 26. Nc4 {[%clk 0:01:03.7]} 26...
Qd8 {[%clk 0:01:40.4]} 27. a5 {[%clk 0:01:02.8]} 27... h4 {[%clk 0:01:39.7]} 28.
Nb6 {[%clk 0:01:02.5]} 28... Rab8 {[%clk 0:01:24.2]} 29. Nxc8 {[%clk 0:00:57.8]}
29... Rxb7 {[%clk 0:01:20.7]} 30. Nb6 {[%clk 0:00:55.2]} 30... hxg3 {[%clk
0:01:17.7]} 31. fxg3 {[%clk 0:00:56.1]} 31... Qg5 {[%clk 0:01:16.5]} 32. Kh2
{[%clk 0:00:52.9]} 32... Rc7 {[%clk 0:01:13.6]} 33. Ne2 {[%clk 0:00:45.6]} 33...
Rxc2 {[%clk 0:01:11.7]} 34. Qxc2 {[%clk 0:00:46.5]} 34... Qe3 {[%clk 0:01:11.2]}
35. Kg2 {[%clk 0:00:40.2]} 35... Qa3 {[%clk 0:01:02.5]} 36. Nc4 {[%clk
0:00:38.6]} 36... Qc5 {[%clk 0:01:00.5]} 37. Qd3 {[%clk 0:00:36.7]} 37... Be7
{[%clk 0:00:56.5]} 38. Nc3 {[%clk 0:00:32.5]} 38... Bg5 {[%clk 0:00:49.9]} 39.
Na4 {[%clk 0:00:31.3]} 39... Qb4 {[%clk 0:00:47.8]} 40. Nab6 {[%clk 0:00:26.6]}
40... Bf4 {[%clk 0:00:36.8]} 41. Qf3 {[%clk 0:00:18.1]} 41... Bc1 {[%clk
0:00:32.7]} 42. h4 {[%clk 0:00:17.9]} 42... Bb2 {[%clk 0:00:27.9]} 43. h5 {[%clk
0:00:16.6]} 43... Nf8 {[%clk 0:00:23.2]} 44. h6 {[%clk 0:00:17]} 44... gxh6
{[%clk 0:00:20.5]} 45. Qg4+ {[%clk 0:00:16.6]} 45... Ng6 {[%clk 0:00:20]} 46.
Qd7 {[%clk 0:00:11.3]} 46... Bd4 {[%clk 0:00:19]} 47. Qxd6 {[%clk 0:00:10.9]}
47... Qc3 {[%clk 0:00:17.5]} 48. Qf6 {[%clk 0:00:05.1]} 48... Qc2+ {[%clk
0:00:15.3]} 49. Kh3 {[%clk 0:00:05.6]} 49... Qd1 {[%clk 0:00:13.4]} 50. Qd8+
{[%clk 0:00:04.9]} 50... Kg7 {[%clk 0:00:12.9]} 51. Qd7 {[%clk 0:00:03.1]} 51...
Qh1+ {[%clk 0:00:10.6]} 52. Kg4 {[%clk 0:00:03.6]} 52... h5+ {[%clk 0:00:10.2]}
53. Kg5 {[%clk 0:00:04.2]} 53... h4 {[%clk 0:00:05.5]} 54. Qg4 {[%clk
0:00:04.2]} 54... hxg3 {[%clk 0:00:05.2]} 55. Qxg3 {[%clk 0:00:04.7]} 55... Qc1+
{[%clk 0:00:04.2]} 56. Kf5 {[%clk 0:00:05.1]} 56... Qf1+ {[%clk 0:00:03.8]} 57.
Kg4 {[%clk 0:00:04.8]} 57... Qe2+ {[%clk 0:00:03.1]} 58. Kf5 {[%clk 0:00:05.2]}
1-0